bitfinex/quotes_ETHUSD_20240601
["timestamp","ask_amount","ask_price","bid_price","bid_amount"]
[1717283202808,17.81267926,3822.9,3822.8,2e-07]
[1717283203901,18.36267926,3822.9,3822.8,2e-07]
[1717283204075,17.66067926,3822.9,3822.8,2e-07]
[1717283208329,12.87080322,3822.9,3822.8,2e-07]
[1717283208827,9.70499322,3822.9,3822.8,2e-07]
[1717283209033,8.84542897,3822.9,3822.8,2e-07]
[1717283209444,10.41521926,3822.9,3822.8,2e-07]
[1717283210444,8.84542897,3822.9,3822.8,2e-07]
[1717283213686,11.85392897,3822.9,3822.8,2e-07]
[1717283216748,14.46973897,3822.9,3822.8,2e-07]
[1717283216955,16.49286478,3822.9,3822.8,2e-07]
[1717283217366,18.86906826,3822.9,3822.8,2e-07]
[1717283221202,19.57106826,3822.9,3822.8,2e-07]
[1717283222911,13.79475826,3822.9,3822.8,2e-07]
[1717283223115,11.22163245,3822.9,3822.8,2e-07]
[1717283223325,8.27972565,3822.9,3822.8,2e-07]
[1717283223622,8.84544611,3822.9,3822.8,2e-07]
[1717283224071,8.84544799,3822.9,3822.8,2e-07]
[1717283225490,8.27972565,3822.9,3822.8,2e-07]
[1717283225687,3.22963788,3822.9,3822.8,2.3078002]
[1717283225913,3.18153223,3822.9,3822.8,2.3078002]
[1717283227128,3.18153223,3822.9,3822.8,2e-07]
[1717283227434,6.18153223,3822.9,3822.8,2e-07]
[1717283227605,7.60563737,3822.9,3822.8,2e-07]
[1717283227994,10.22144737,3822.9,3822.8,2e-07]
[1717283228217,12.5974495,3822.9,3822.8,2e-07]
[1717283229717,13.8494495,3822.9,3822.8,2e-07]
[1717283230147,18.8866595,3822.9,3822.8,2e-07]
[1717283233533,22.96279872,3822.9,3822.8,2e-07]
[1717283235869,22.96291814,3822.9,3822.8,2e-07]
[1717283236538,22.96345097,3822.9,3822.8,2e-07]
[1717283238746,22.26145097,3822.9,3822.8,2e-07]
[1717283238963,15.21391175,3822.9,3822.8,2e-07]
[1717283240533,15.76391175,3822.9,3822.8,2e-07]
[1717283240874,13.14810175,3822.9,3822.8,2e-07]
[1717283241178,15.76391175,3822.9,3822.8,2e-07]
[1717283241736,18.09311175,3822.9,3822.8,2e-07]
[1717283243975,15.76391175,3822.9,3822.8,2e-07]
[1717283244696,15.76386084,3822.9,3822.8,2e-07]
[1717283245146,13.14805084,3822.9,3822.8,2e-07]
[1717283245343,16.46586084,3822.9,3822.8,2e-07]
[1717283250358,13.14805084,3822.9,3822.8,2e-07]
[1717283250554,13.85005084,3822.9,3822.8,2e-07]
[1717283250751,16.46586084,3822.9,3822.8,2e-07]
[1717283252069,13.85005084,3822.9,3822.8,2e-07]
[1717283253009,16.46586084,3822.9,3822.8,2e-07]
[1717283254005,13.85005084,3822.9,3822.8,2e-07]
[1717283254165,16.46586084,3822.9,3822.8,2e-07]
[1717283255608,13.85005084,3822.9,3822.8,2e-07]
[1717283255797,13.14805084,3822.9,3822.8,2e-07]
[1717283256714,13.85005084,3822.9,3822.8,2e-07]
[1717283258587,5.5581357,3822.9,3822.8,2.4410002]
[1717283259226,3.18160074,3822.9,3822.8,2.4410002]
[1717283259387,2.61581,3822.9,3822.8,2.4410002]
[1717283259719,4.18498907,3822.9,3822.8,2.4410002]
[1717283259928,7.75064706,3822.9,3822.8,2.4410002]
[1717283261137,7.75064706,3822.9,3822.8,2.75530022]
[1717283261426,5.61581,3822.9,3822.8,2.75530022]
[1717283261593,5.61581,3822.9,3822.8,3.45730022]
[1717283264108,5.61581,3822.9,3822.8,3.1430002]
[1717283264318,5.61581,3822.9,3822.8,2.4410002]
[1717283264713,6.18146842,3822.9,3822.8,2.4410002]
[1717283265114,5.61581,3822.9,3822.8,2.4410002]
[1717283265492,6.18146976,3822.9,3822.8,2.4410002]
[1717283267492,6.18146976,3822.9,3822.8,2e-07]
[1717283269313,6.18146846,3822.9,3822.8,2e-07]
[1717283269523,5.61581,3822.9,3822.8,2e-07]
[1717283269910,6.18147025,3822.9,3822.8,2e-07]
[1717283270523,7.75063833,3822.9,3822.8,2e-07]
[1717283272057,6.18147025,3822.9,3822.8,2e-07]
[1717283272710,11.90903208,3822.9,3822.8,2e-07]
[1717283272955,15.60646259,3822.9,3822.8,2e-07]
[1717283275251,15.60654834,3822.9,3822.8,2e-07]
[1717283277013,18.22235834,3822.9,3822.8,2e-07]
[1717283278250,18.22238661,3822.9,3822.8,2e-07]
[1717283280708,18.22238846,3822.9,3822.8,2e-07]
[1717283281451,18.22238644,3822.9,3822.8,2e-07]
[1717283287515,20.97638644,3822.9,3822.8,2e-07]
[1717283287721,18.22238644,3822.9,3822.8,2e-07]
[1717283288243,20.97638644,3822.9,3822.8,2e-07]
[1717283288423,20.97671791,3822.9,3822.8,2e-07]
[1717283288858,20.41090942,3822.9,3822.8,2e-07]
[1717283289049,20.97671857,3822.9,3822.8,2e-07]
[1717283292251,20.97672031,3822.9,3822.8,2e-07]
[1717283292728,22.29885953,3822.9,3822.8,2e-07]
[1717283294725,27.53047953,3822.9,3822.8,2e-07]
[1717283295063,28.26277389,3822.9,3822.8,2e-07]
[1717283295425,28.26280593,3822.9,3822.8,2e-07]
[1717283296171,28.30996186,3822.9,3822.8,2e-07]
[1717283296481,25.69415186,3822.9,3822.8,2e-07]
[1717283296690,26.39615186,3822.9,3822.8,2e-07]
[1717283298770,29.01196186,3822.9,3822.8,2e-07]
[1717283303055,28.60035964,3822.9,3822.8,2e-07]
[1717283303483,24.96229962,3822.9,3822.8,2e-07]
[1717283303687,28.28010962,3822.9,3822.8,2e-07]
[1717283304895,28.28010962,3822.9,3821.3,2.3704]
[1717283304896,7.85052,3821.4,3821.3,2.3704]
[1717283305049,12.10252,3821.4,3821.3,2.3704]
[1717283305250,12.66844603,3821.4,3821.3,2.3704]
[1717283305761,11.96644603,3821.4,3821.3,2.3704]
[1717283306889,13.53489038,3821.4,3821.3,2.3704]
[1717283307910,11.96644603,3821.4,3821.3,2.3704]
[1717283308108,13.53489038,3821.4,3821.3,2.3704]
[1717283308298,12.98489038,3821.4,3821.3,2.3704]
[1717283308496,11.41644603,3821.4,3821.3,2.3704]
[1717283308699,2.61684,3821.4,3821.3,2.60744]
[1717283309336,2.61684,3821.4,3820.0,2.3704]
[1717283309547,2.61664,3821.7,3820.0,2.3704]
[1717283309548,2.61773,3820.1,3820.0,2.3704]
[1717283310057,2.61773,3820.1,3820.0,2.60744]
[1717283310199,5.61773,3820.1,3820.0,2.60744]
[1717283312439,5.61773,3820.1,3820.0,2.3704]
[1717283320113,2.61773,3820.1,3820.0,2.3704]
[1717283323663,5.61773,3820.1,3820.0,2.3704]
[1717283323893,2.61773,3820.1,3820.0,2.3704]
[1717283324101,2.61773,3820.1,3819.0,0.1259158]
[1717283324102,2.6183,3819.3,3819.0,0.1259158]
[1717283324305,2.6183,3819.3,3819.1,0.24666158]
[1717283328562,2.6183,3819.3,3819.2,2.3407]
[1717283330512,2.61806,3819.7,3819.2,2.3407]
[1717283330690,2.61806,3819.7,3819.1,1.689]
[1717283330904,5.05951914,3819.9,3819.0,0.1259158]
[1717283330905,2.61834,3819.2,3819.0,0.1259158]
[1717283334678,2.61834,3819.2,3819.1,2.3407]
[1717283335620,2.61834,3819.2,3819.0,0.1259158]
[1717283338192,0.55,3819.1,3819.0,0.1259158]
[1717283340196,2.61834,3819.2,3819.0,0.1259158]
[1717283342219,3.0,3819.1,3819.0,0.1259158]
[1717283349869,6.88690187,3819.1,3819.0,0.1259158]
[1717283350040,9.50531187,3819.1,3819.0,0.1259158]
[1717283353343,10.07153011,3819.1,3819.0,0.1259158]
[1717283355479,6.18462824,3819.1,3819.0,0.1259158]
[1717283355649,6.18462754,3819.1,3819.0,0.1259158]
[1717283356557,5.61841,3819.1,3819.0,0.1259158]
[1717283357482,6.18462704,3819.1,3819.0,0.1259158]
[1717283358281,7.75112859,3819.1,3819.0,0.1259158]
[1717283359584,10.5439899,3819.1,3819.0,0.1259158]
[1717283359746,13.5917899,3819.1,3819.0,0.1259158]
[1717283361389,12.8877899,3819.1,3819.0,0.1259158]
[1717283364088,12.88781942,3819.1,3819.0,0.1259158]
[1717283364299,9.35306656,3819.1,3819.0,0.1259158]
[1717283364522,6.18465656,3819.1,3819.0,0.1259158]
[1717283365287,5.61841,3819.1,3819.0,0.1259158]
[1717283365486,6.18464984,3819.1,3819.0,0.1259158]
[1717283365979,5.61841,3819.1,3819.0,0.1259158]
[1717283366203,6.18464979,3819.1,3819.0,0.1259158]
[1717283369132,9.68336477,3819.1,3819.0,0.1259158]
[1717283369428,10.23336477,3819.1,3819.0,0.1259158]
[1717283369935,0.56623979,3819.1,3819.0,3.1076158]
[1717283370087,2.61834,3819.3,3819.0,3.1076158]
[1717283370287,2.61834,3819.3,3819.2,0.704]
[1717283371124,5.61834,3819.3,3819.2,0.704]
[1717283371291,2.61834,3819.3,3819.2,0.704]
[1717283371495,5.61834,3819.3,3819.0,2.4036158]
[1717283371817,2.61834,3819.3,3819.0,2.4036158]
[1717283375192,2.61834,3819.3,3819.0,0.1259158]
[1717283375391,3.0,3819.4,3819.0,0.1259158]
[1717283375392,2.61841,3819.1,3819.0,0.1259158]
[1717283385225,2.61841,3819.1,3819.0,2.5287158]
[1717283387865,3.0,3819.4,3819.0,2.5287158]
[1717283388182,3.0,3819.5,3819.0,2.5287158]
[1717283388372,3.0,3819.5,3819.1,0.42187158]
[1717283389959,3.0,3819.5,3819.2,1.69]
[1717283390662,2.61814,3819.6,3819.2,1.69]
[1717283391702,5.05951914,3819.9,3819.3,2.4028]
[1717283391858,5.05951914,3819.9,3819.6,1.69]
[1717283395459,2.6178,3820.1,3819.4,0.71330816]
[1717283395782,2.6178,3820.1,3820.0,0.704]
[1717283395946,5.6178,3820.1,3820.0,0.704]
[1717283396144,2.61795,3819.8,3819.6,0.704]
[1717283396952,2.61795,3819.8,3819.6,1.01468]
[1717283397163,2.61795,3819.8,3819.6,0.704]
[1717283401179,3.0,3820.1,3819.7,2.3581]
[1717283401490,3.0,3820.1,3820.0,3.0621]
[1717283401702,3.0,3820.4,3820.0,3.0621]
[1717283401888,3.0,3820.4,3820.3,0.704]
[1717283402464,3.0,3820.7,3820.3,0.704]
[1717283402672,3.0,3820.7,3820.0,2.3581]
[1717283402673,2.61728,3820.8,3820.6,0.704]
[1717283403211,1.56665257,3821.0,3820.6,0.704]
[1717283403366,1.56665257,3821.1,3820.9,0.704]
[1717283403574,2.61703,3821.2,3820.8,1.688]
[1717283403903,6.62617171,3821.5,3820.8,2.09261]
[1717283404125,6.62617171,3821.5,3820.8,0.40461]
[1717283404126,5.05951914,3821.5,3820.8,0.40461]
[1717283404398,5.05951914,3821.5,3821.1,1.688]
[1717283406104,3.0,3821.4,3821.1,1.688]
[1717283407690,3.0,3821.5,3821.1,1.688]
[1717283408493,3.0,3821.5,3821.2,0.1688]
[1717283409071,3.0,3821.5,3821.1,1.688]
[1717283411706,2.61674,3821.6,3821.1,1.688]
[1717283412369,10.67599914,3822.0,3821.2,2.3654]
[1717283412571,3.0,3821.9,3821.5,1.688]
[1717283415314,3.0,3821.9,3821.5,2.09334]
[1717283415615,3.0,3821.9,3821.2,2.3654]
[1717283416176,2.6166,3821.8,3821.2,2.3654]
[1717283416508,3.0,3821.7,3821.2,2.3654]
[1717283418518,2.61693,3821.3,3820.8,2.3147]
[1717283418813,2.61709,3821.1,3820.5,2.3147]
[1717283419388,2.61728,3820.8,3820.3,1.688]
[1717283420306,3.0,3821.0,3820.7,1.688]
[1717283420621,3.0,3821.1,3820.7,1.688]
[1717283420806,3.0,3821.1,3820.7,2.08827]
[1717283426026,5.05951914,3821.5,3820.8,2.3147]
[1717283426192,3.0,3821.4,3821.1,1.688]
[1717283428196,3.0,3821.4,3820.8,2.3147]
[1717283428197,2.61691,3821.3,3820.8,2.3147]
[1717283428397,2.61691,3821.3,3820.9,1.688]
[1717283429195,2.61722,3820.9,3820.5,2.3147]
[1717283429397,2.61722,3820.9,3820.7,1.688]
[1717283430498,2.61722,3820.9,3820.2,2.3147]
[1717283431132,2.61722,3820.9,3820.4,1.688]
[1717283431507,2.61722,3820.9,3820.5,0.04149507]
[1717283431913,2.61722,3820.9,3820.4,1.688]
[1717283432204,2.61722,3820.9,3820.5,0.04141291]
[1717283432205,3.113102,3820.9,3820.5,0.04141291]
[1717283432631,2.61749,3820.5,3820.1,1.688]
[1717283433040,2.61749,3820.5,3820.2,0.0414676]
[1717283433539,2.61749,3820.5,3820.3,0.04144937]
[1717283434037,2.61749,3820.5,3820.1,1.688]
[1717283434534,2.61749,3820.5,3820.2,0.0414676]
[1717283434836,2.61749,3820.5,3820.1,1.688]
[1717283435135,2.61749,3820.5,3820.2,0.0414676]
[1717283435765,2.61749,3820.5,3820.3,0.04144937]
[1717283436237,2.61749,3820.5,3820.1,2.08387]
[1717283436394,2.61749,3820.5,3820.4,0.04143114]
[1717283436598,2.61749,3820.5,3820.1,2.08387]
[1717283436837,2.61749,3820.5,3820.4,0.04143114]
[1717283437023,2.61749,3820.5,3820.1,2.08387]
[1717283437223,2.61749,3820.5,3820.4,0.04136004]
[1717283437427,2.61749,3820.5,3820.1,2.08387]
[1717283437626,2.61749,3820.5,3820.4,0.04136004]
[1717283437803,2.61749,3820.5,3820.1,2.08387]
[1717283437998,2.61749,3820.5,3820.4,0.04136004]
[1717283438625,2.61749,3820.5,3820.1,2.08387]
[1717283438834,2.61749,3820.5,3820.4,0.04136004]
[1717283439302,2.61749,3820.5,3820.2,0.435457]
[1717283439518,2.61749,3820.5,3820.3,0.04155957]
[1717283439728,2.61749,3820.5,3820.2,0.435457]
[1717283439936,2.61749,3820.5,3820.3,0.04155957]
[1717283440136,2.61749,3820.5,3820.2,0.435457]
[1717283440337,2.61749,3820.5,3820.3,0.25390527]
[1717283442241,2.61725,3820.8,3820.3,0.25390527]
[1717283442439,2.61725,3820.8,3820.3,0.04155957]
[1717283442643,2.61725,3820.8,3820.2,0.435457]
[1717283443641,2.61725,3820.8,3820.3,0.04155957]
[1717283443835,2.61725,3820.8,3820.1,4.0368]
[1717283444035,2.61725,3820.8,3820.2,0.0415778]
[1717283444669,2.61725,3820.8,3820.3,1.688]
[1717283444869,2.61725,3820.8,3820.4,0.0415895]
[1717283445238,5.05951914,3821.0,3820.4,0.40783895]
[1717283445469,5.05951914,3821.0,3820.7,1.688]
[1717283445777,5.05951914,3821.0,3820.9,0.703]
[1717283447446,5.05951914,3821.0,3820.7,1.688]
[1717283447648,5.05951914,3821.0,3820.7,1.8975839]
[1717283447865,5.05951914,3821.0,3820.8,0.04151658]
[1717283448057,5.05951914,3821.0,3820.7,1.8975839]
[1717283448387,2.61703,3821.2,3820.8,0.04151658]
[1717283459893,2.61678,3821.5,3821.1,1.688]
[1717283460050,2.61678,3821.5,3821.2,0.04124663]
[1717283460391,2.61678,3821.5,3821.1,1.688]
[1717283460692,2.61678,3821.5,3821.2,0.04124663]
[1717283460853,2.61678,3821.5,3821.1,1.8568]
[1717283461051,2.61678,3821.5,3821.2,0.04124663]
[1717283461256,2.61678,3821.5,3821.0,1.688]
[1717283461555,2.61678,3821.5,3821.0,1.87775839]
[1717283461760,4.7458533,3821.5,3821.0,1.87775839]
[1717283461991,4.1800024,3821.5,3821.0,1.87775839]
[1717283462192,2.61678,3821.5,3821.0,1.87775839]
[1717283464481,2.61695,3821.3,3821.0,1.87775839]
[1717283464673,2.61695,3821.3,3821.1,0.04126485]
[1717283465263,2.61712,3821.0,3820.7,0.2095839]
[1717283465509,2.61712,3821.0,3820.8,0.46595792]
[1717283467685,2.61712,3821.0,3820.9,0.703]
[1717283467903,2.61712,3821.0,3820.9,0.7443523]
[1717283471806,2.61712,3821.0,3820.9,0.0413523]
[1717283472121,2.61712,3821.0,3820.9,0.703]
[1717283473109,2.61749,3820.5,3819.7,2.3696]
[1717283473344,2.61749,3820.5,3820.4,0.703]
[1717283476376,2.61749,3820.5,3819.7,2.3696]
[1717283476578,2.61749,3820.5,3820.4,0.703]
[1717283484322,2.61749,3820.5,3820.4,0.74454826]
[1717283484823,2.61749,3820.5,3820.4,1.05431309]
[1717283486096,2.61749,3820.5,3820.4,0.74454826]
[1717283490416,2.61749,3820.5,3820.4,0.04154826]
[1717283490617,2.61749,3820.5,3820.4,0.74454826]
[1717283490830,2.61749,3820.5,3820.4,0.703]
[1717283494131,2.61767,3820.2,3819.7,2.3531]
[1717283494443,2.61767,3820.2,3820.1,0.703]
[1717283494763,2.61767,3820.2,3820.1,0.74455196]
[1717283495467,2.61767,3820.2,3820.1,0.04155196]
[1717283495670,2.61767,3820.2,3820.1,0.74455196]
[1717283495905,2.61767,3820.2,3820.1,0.703]
[1717283496175,2.61767,3820.2,3820.1,0.74455196]
[1717283496516,2.61767,3820.2,3820.1,0.04155196]
[1717283496765,2.61786,3819.9,3819.8,0.703]
[1717283496928,2.61786,3819.9,3819.8,0.74329167]
[1717283500219,2.61786,3819.9,3819.8,0.703]
[1717283500573,2.61786,3819.9,3819.8,0.7434985]
[1717283501152,2.61786,3819.9,3819.8,0.703]
[1717283502759,2.61786,3819.9,3819.4,2.487]
[1717283502960,2.61786,3819.9,3819.8,0.703]
[1717283508448,2.61786,3819.9,3819.5,0.2487]
[1717283508786,5.05951914,3820.6,3819.8,0.703]
[1717283508787,2.61766,3820.3,3819.8,0.703]
[1717283508990,2.61766,3820.3,3820.2,0.703]
[1717283509192,2.61766,3820.3,3820.2,0.74350773]
[1717283509354,2.61766,3820.3,3820.2,0.703]
[1717283512677,2.61766,3820.3,3819.8,2.487]
[1717283512933,2.61766,3820.3,3820.1,0.703]
[1717283514910,2.61787,3819.9,3819.3,2.4493]
[1717283515223,2.61787,3819.9,3819.8,0.703]
[1717283515591,2.61787,3819.9,3819.8,0.74358067]
[1717283519127,2.61787,3819.9,3819.8,0.703]
[1717283521724,2.61787,3819.9,3819.4,0.24493]
[1717283521925,2.61787,3819.9,3819.6,0.703]
[1717283522124,2.61787,3819.9,3819.7,0.04014358]
[1717283522324,2.61787,3819.9,3819.6,0.703]
[1717283522629,2.61787,3819.9,3819.7,0.04014358]
[1717283522946,2.61787,3819.9,3819.6,0.703]
[1717283523347,2.61787,3819.9,3819.7,0.04014358]
[1717283523665,2.61787,3819.9,3819.6,0.703]
[1717283524146,2.61787,3819.9,3819.7,0.04014358]
[1717283524477,2.61787,3819.9,3819.6,0.703]
[1717283524840,2.61787,3819.9,3819.7,0.04014358]
[1717283525271,2.61787,3819.9,3819.6,0.703]
[1717283525759,2.61787,3819.9,3819.7,0.04014358]
[1717283526165,2.61787,3819.9,3819.6,0.703]
[1717283526673,2.61787,3819.9,3819.7,0.04014358]
[1717283529170,2.61787,3819.9,3819.7,0.74314358]
[1717283533234,5.90332528,3819.9,3819.7,0.04014358]
[1717283533441,5.90332528,3819.9,3818.1,1.52583028]
[1717283533442,2.3716,3819.7,3818.8,0.703]
[1717283533641,1.56088279,3819.5,3818.8,0.703]
[1717283533846,1.56088279,3819.5,3819.0,0.8289158]
[1717283534064,2.36574511,3819.5,3819.0,0.8289158]
[1717283534478,0.80486232,3819.5,3819.0,0.8289158]
[1717283534984,2.61841,3819.1,3819.0,0.8289158]
[1717283537675,8.24812,3819.1,3819.0,0.1259158]
[1717283537877,12.364362,3819.1,3819.0,0.1259158]
[1717283538184,13.75688648,3819.1,3819.0,0.1259158]
[1717283538386,13.19064448,3819.1,3819.0,0.1259158]
[1717283539079,15.31777704,3819.1,3819.0,0.1259158]
[1717283539453,13.19064448,3819.1,3819.0,0.1259158]
[1717283539694,12.48764448,3819.1,3819.0,0.1259158]
[1717283546607,8.23682,3819.1,3819.0,0.1259158]
[1717283547261,10.54512,3819.1,3819.0,0.1259158]
[1717283547485,11.09512,3819.1,3819.0,0.1259158]
[1717283550671,6.16841,3819.1,3819.0,0.1259158]
[1717283550866,19.47604914,3819.1,3819.0,5.8e-06]
[1717283551112,18.04075234,3819.1,3819.0,5.8e-06]
[1717283551316,20.65916234,3819.1,3819.0,5.8e-06]
[1717283551486,20.65917611,3819.1,3819.0,5.8e-06]
[1717283551661,22.2200589,3819.1,3819.0,5.8e-06]
[1717283555198,20.65917611,3819.1,3819.0,5.8e-06]
[1717283562008,19.95617611,3819.1,3819.0,5.8e-06]
[1717283562310,20.65917611,3819.1,3819.0,5.8e-06]
[1717283562724,17.33776611,3819.1,3819.0,5.8e-06]
[1717283562929,18.04076611,3819.1,3819.0,5.8e-06]
[1717283574122,24.73531533,3819.1,3819.0,5.8e-06]
[1717283574354,29.01678934,3819.1,3819.0,5.8e-06]
[1717283576222,26.63823376,3819.1,3819.0,5.8e-06]
[1717283576445,29.01690154,3819.1,3819.0,5.8e-06]
[1717283579420,29.06391087,3819.1,3819.0,5.8e-06]
[1717283580319,23.73477165,3819.1,3819.0,5.8e-06]
[1717283580516,20.80963065,3819.1,3819.0,5.8e-06]
[1717283580717,21.51263065,3819.1,3819.0,5.8e-06]
[1717283581848,18.19122065,3819.1,3819.0,5.8e-06]
[1717283583970,18.74122065,3819.1,3819.0,5.8e-06]
[1717283585975,13.68170151,3819.1,3819.0,5.8e-06]
[1717283586935,13.11541554,3819.1,3819.0,5.8e-06]
[1717283587142,13.68169492,3819.1,3819.0,5.8e-06]
[1717283592963,13.68150344,3819.1,3819.0,5.8e-06]
[1717283594523,13.68150779,3819.1,3819.0,5.8e-06]
[1717283597704,15.11995857,3819.1,3819.0,5.8e-06]
[1717283599458,20.09846857,3819.1,3819.0,5.8e-06]
[1717283600609,21.42060779,3819.1,3819.0,5.8e-06]
[1717283601480,21.42073397,3819.1,3819.0,5.8e-06]
[1717283602675,21.4207865,3819.1,3819.0,5.8e-06]
[1717283602884,21.46623391,3819.1,3819.0,5.8e-06]
[1717283603401,26.52575305,3819.1,3819.0,5.8e-06]
[1717283605668,29.27975305,3819.1,3819.0,5.8e-06]
[1717283606470,28.71343793,3819.1,3819.0,5.8e-06]
[1717283606672,29.27979107,3819.1,3819.0,5.8e-06]
[1717283606968,29.27979086,3819.1,3819.0,5.8e-06]
[1717283607407,27.3768386,3819.1,3819.0,5.8e-06]
[1717283607614,29.27982611,3819.1,3819.0,5.8e-06]
[1717283608978,26.90123632,3819.1,3819.0,5.8e-06]
[1717283609212,29.27990109,3819.1,3819.0,5.8e-06]
[1717283610125,29.27989703,3819.1,3819.0,5.8e-06]
[1717283624121,26.91979703,3819.1,3819.0,5.8e-06]
[1717283624321,24.86879703,3819.1,3819.0,5.8e-06]
[1717283627869,24.82334962,3819.1,3819.0,5.8e-06]
[1717283629078,22.20493962,3819.1,3819.0,5.8e-06]
[1717283629470,15.19134962,3819.1,3819.0,5.8e-06]
[1717283629776,14.62500075,3819.1,3819.0,2.4442058]
[1717283629972,15.19129877,3819.1,3819.0,2.4442058]
[1717283630832,18.74107758,3819.1,3819.0,2.4442058]
[1717283632874,13.68155844,3819.1,3819.0,2.4442058]
[1717283635656,13.68155844,3819.1,3819.0,5.8e-06]
[1717283635843,14.38455844,3819.1,3819.0,5.8e-06]
[1717283637870,13.68155844,3819.1,3819.0,5.8e-06]
[1717283640149,19.39068159,3819.1,3819.0,5.8e-06]
[1717283641082,19.39069573,3819.1,3819.0,5.8e-06]
[1717283641741,15.82303167,3819.1,3819.0,5.8e-06]
[1717283642051,15.82310291,3819.1,3819.0,5.8e-06]
[1717283642641,13.9201154,3819.1,3819.0,5.8e-06]
[1717283643074,15.82297611,3819.1,3819.0,5.8e-06]
[1717283643377,13.68152027,3819.1,3819.0,5.8e-06]
[1717283643554,11.06311027,3819.1,3819.0,2.2502058]
[1717283646777,11.06309079,3819.1,3819.0,2.2502058]
[1717283650483,8.68459209,3819.1,3819.0,2.2502058]
[1717283650687,11.06308683,3819.1,3819.0,2.2502058]
[1717283651741,11.06308683,3819.1,3819.0,5.8e-06]
[1717283651940,14.78780551,3819.1,3819.0,5.8e-06]
[1717283653496,14.78779679,3819.1,3819.0,5.8e-06]
[1717283660673,14.78778118,3819.1,3819.0,5.8e-06]
[1717283661205,17.40619118,3819.1,3819.0,5.8e-06]
[1717283662263,17.40618178,3819.1,3819.0,5.8e-06]
[1717283670869,17.40617786,3819.1,3819.0,5.8e-06]
[1717283672405,18.10917786,3819.1,3819.0,5.8e-06]
[1717283672622,20.50077786,3819.1,3819.0,5.8e-06]
[1717283672820,20.546243,3819.1,3819.0,5.8e-06]
[1717283673187,24.48679222,3819.1,3819.0,5.8e-06]
[1717283673638,21.86838222,3819.1,3819.0,5.8e-06]
[1717283674121,24.48679222,3819.1,3819.0,5.8e-06]
[1717283675640,23.78379222,3819.1,3819.0,5.8e-06]
[1717283675789,24.48679222,3819.1,3819.0,5.8e-06]
[1717283682628,24.58919222,3819.1,3819.0,5.8e-06]
[1717283703077,27.15471136,3819.1,3819.0,5.8e-06]
[1717283703877,29.49831136,3819.1,3819.0,5.8e-06]
[1717283705997,27.15471136,3819.1,3819.0,5.8e-06]
[1717283710401,27.1547958,3819.1,3819.0,5.8e-06]
[1717283711554,7.55859876,3819.1,3819.0,5.8e-06]
[1717283711733,0.04700933,3819.1,3819.0,0.7030058]
[1717283711890,0.6132531,3819.1,3819.0,0.7030058]
[1717283712204,0.04700933,3819.1,3819.0,0.73721696]
[1717283712602,2.61817,3819.5,3819.0,0.73721116]
[1717283712809,2.61817,3819.5,3819.2,0.703]
[1717283713005,2.61817,3819.5,3819.3,0.03415076]
[1717283714416,2.61817,3819.5,3819.2,0.703]
[1717283714612,2.61817,3819.5,3819.3,2.4713]
[1717283714934,2.61817,3819.5,3819.4,0.35121126]
[1717283715246,5.61817,3819.5,3819.4,0.35121126]
[1717283715597,5.61817,3819.5,3819.3,2.4713]
[1717283715800,3.0,3819.4,3819.3,2.4713]
[1717283716795,3.55,3819.4,3819.3,2.4713]
[1717283718514,3.55,3819.4,3818.8,2.3087]
[1717283718714,0.55,3819.3,3818.8,2.3087]
[1717283720047,2.61855,3818.9,3818.8,2.3087]
[1717283720217,3.16855,3818.9,3818.8,2.3087]
[1717283720418,6.16855,3818.9,3818.8,2.3087]
[1717283722475,6.16855,3818.9,3818.8,2.60987]
[1717283724862,2.61914,3818.1,3817.5,2.3087]
[1717283725072,2.61914,3818.1,3818.0,0.703]
[1717283725788,2.61914,3818.1,3818.0,3.0117]
[1717283726070,2.61914,3818.1,3818.0,3.04396974]
[1717283728884,2.61914,3818.1,3818.0,2.34096974]
[1717283729132,2.61914,3818.1,3818.0,3.04396974]
[1717283730977,2.61914,3818.1,3818.0,3.34836671]
[1717283734073,7.67839914,3818.5,3818.1,2.4815]
[1717283734287,7.67839914,3818.5,3818.4,3.1845]
[1717283734489,2.61888,3818.5,3818.4,3.1845]
[1717283734802,2.61888,3818.5,3818.4,3.50623416]
[1717283734965,2.61888,3818.5,3818.4,3.53903927]
[1717283738197,2.61888,3818.5,3818.4,2.51430511]
[1717283738528,2.61888,3818.5,3818.4,2.4815]
[1717283738934,2.61888,3818.5,3818.4,2.51423719]
[1717283746670,2.61888,3818.5,3818.4,0.03273719]
[1717283751626,2.61888,3818.5,3818.3,0.703]
[1717283766382,2.61888,3818.5,3816.8,2.3391]
[1717283766383,2.4613,3818.3,3816.8,2.3391]
[1717283766566,2.61946,3817.6,3816.8,2.3391]
[1717283766781,3.55,3817.5,3816.9,0.73387923]
[1717283766985,2.61992,3817.0,3816.9,0.703]
[1717283768797,2.61992,3817.0,3816.7,0.0364182]
[1717283769184,2.61992,3817.0,3816.7,0.7394182]
[1717283773290,2.61992,3817.0,3816.7,0.0364182]
[1717283773491,2.61992,3817.0,3816.7,0.7394182]
[1717283774093,2.61992,3817.0,3816.9,0.703]
[1717283774307,5.61992,3817.0,3816.9,0.703]
[1717283775013,5.61992,3817.0,3816.7,0.7394182]
[1717283775443,6.181912,3817.0,3816.7,0.0364182]
[1717283776309,5.61992,3817.0,3816.7,0.0364182]
[1717283776561,5.61992,3817.0,3816.7,0.7394182]
[1717283777120,5.61992,3817.0,3816.7,0.0364182]
[1717283777349,5.61992,3817.0,3816.7,0.7394182]
[1717283777535,5.61992,3817.0,3816.7,0.0364182]
[1717283783357,5.61992,3817.0,3816.7,0.7394182]
[1717283783557,5.61992,3817.0,3816.8,0.02865387]
[1717283783760,2.757,3819.2,3816.8,0.02865387]
[1717283783761,0.04546171,3818.2,3816.9,2.4288]
[1717283784063,12.48,3819.3,3816.9,2.4288]
[1717283784064,2.61839,3819.2,3817.1,2.4288]
[1717283784357,2.61839,3819.2,3818.5,0.703]
[1717283784530,0.76779091,3819.1,3818.5,0.703]
[1717283784730,2.61839,3819.2,3818.6,0.02801374]
[1717283785517,0.55,3819.1,3818.6,0.02801374]
[1717283785866,2.61869,3818.7,3818.2,2.4288]
[1717283786048,2.61869,3818.7,3818.3,0.02807133]